fUSD/lending_fUSD_20260527
["ID","MTS","AMOUNT","RATE_DAILY","PERIOD"]
[423128380,1779870654000,-314.67430065,0.00039315,120]
[423128378,1779870654000,-500.0,0.00039315,120]
[423128371,1779870654000,-1610.7,0.00039315,120]
[423128379,1779870654000,-500.0,0.00039315,120]
[423128383,1779870654000,-474.86469045,0.00039315,120]
[423128389,1779870654000,-748.01,0.00039315,120]
[423128384,1779870654000,-157.0301784,0.00039315,120]
[423128382,1779870654000,-500.0,0.00039315,120]
[423128388,1779870654000,-748.01,0.00039315,120]
[423128386,1779870654000,-748.01,0.00039315,120]
[423128391,1779870654000,-748.01,0.00039315,120]
[423128390,1779870654000,-748.01,0.00039315,120]
[423128319,1779870654000,-500.0,0.00039315,120]
[423128387,1779870654000,-748.01,0.00039315,120]
[423128366,1779870654000,-1610.7,0.00039315,120]
[423128368,1779870654000,-1610.7,0.00039315,120]
[423128385,1779870654000,-748.01,0.00039315,120]
[423128369,1779870654000,-1610.7,0.00039315,120]
[423128360,1779870654000,-1610.7,0.00039315,120]
[423128333,1779870654000,-500.0,0.00039315,120]
[423128343,1779870654000,-1667.22,0.00039315,120]
[423128332,1779870654000,-500.0,0.00039315,120]
[423128335,1779870654000,-500.0,0.00039315,120]
[423128334,1779870654000,-500.0,0.00039315,120]
[423128339,1779870654000,-1667.22,0.00039315,120]
[423128338,1779870654000,-1667.22,0.00039315,120]
[423128341,1779870654000,-1667.22,0.00039315,120]
[423128342,1779870654000,-1667.22,0.00039315,120]
[423128337,1779870654000,-1667.22,0.00039315,120]
[423128336,1779870654000,-244.60765952,0.00039315,120]
[423128340,1779870654000,-1667.22,0.00039315,120]
[423128345,1779870654000,-1667.22,0.00039315,120]
[423128344,1779870654000,-1667.22,0.00039315,120]
[423128359,1779870654000,-242.10349999,0.00039315,120]
[423128358,1779870654000,-396.65145429,0.00039315,120]
[423128357,1779870654000,-500.0,0.00039315,120]
[423128355,1779870654000,-614.64933964,0.00039315,120]
[423128353,1779870654000,-500.0,0.00039315,120]
[423128350,1779870654000,-1667.22,0.00039315,120]
[423128356,1779870654000,-500.0,0.00039315,120]
[423128354,1779870654000,-500.0,0.00039315,120]
[423128351,1779870654000,-1667.22,0.00039315,120]
[423128352,1779870654000,-1667.22,0.00039315,120]
[423128346,1779870654000,-1667.22,0.00039315,120]
[423128349,1779870654000,-1667.22,0.00039315,120]
[423128347,1779870654000,-1667.22,0.00039315,120]
[423128348,1779870654000,-1667.22,0.00039315,120]
[423128444,1779870655000,-500.0,0.00039315,30]
[423128432,1779870655000,-500.0,0.00039315,30]
[423128427,1779870655000,-500.0,0.00039315,120]
[423128431,1779870655000,-500.0,0.00039315,30]
[423128429,1779870655000,-500.0,0.00039315,120]
[423128451,1779870655000,-1000.0,0.00039315,2]
[423128428,1779870655000,-500.0,0.00039315,120]
[423128425,1779870655000,-500.0,0.00039315,120]
[423128423,1779870655000,-500.0,0.00039315,120]
[423128422,1779870655000,-500.0,0.00039315,120]
[423128426,1779870655000,-500.0,0.00039315,120]
[423128430,1779870655000,-549.56689732,0.00039315,120]
[423128434,1779870655000,-500.0,0.00039315,30]
[423128440,1779870655000,-500.0,0.00039315,30]
[423128435,1779870655000,-500.0,0.00039315,30]
[423128443,1779870655000,-500.0,0.00039315,30]
[423128438,1779870655000,-500.0,0.00039315,30]
[423128439,1779870655000,-500.0,0.00039315,30]
[423128436,1779870655000,-500.0,0.00039315,30]
[423128441,1779870655000,-500.0,0.00039315,30]
[423128437,1779870655000,-500.0,0.00039315,30]
[423128442,1779870655000,-500.0,0.00039315,30]
[423128445,1779870655000,-500.0,0.00039315,30]
[423128449,1779870655000,-1000.0,0.00039315,2]
[423128450,1779870655000,-500.0,0.00039315,30]
[423128424,1779870655000,-500.0,0.00039315,120]
[423128433,1779870655000,-500.0,0.00039315,30]
[423128421,1779870655000,-500.0,0.00039315,120]
[423128408,1779870655000,-748.08094128,0.00039315,120]
[423128413,1779870655000,-500.0,0.00039315,120]
[423128447,1779870655000,-500.0,0.00039315,30]
[423128393,1779870655000,-748.01,0.00039315,120]
[423128394,1779870655000,-748.01,0.00039315,120]
[423128392,1779870655000,-748.01,0.00039315,120]
[423128395,1779870655000,-748.01,0.00039315,120]
[423128398,1779870655000,-748.01,0.00039315,120]
[423128407,1779870655000,-748.01,0.00039315,120]
[423128396,1779870655000,-748.01,0.00039315,120]
[423128397,1779870655000,-748.01,0.00039315,120]
[423128399,1779870655000,-748.01,0.00039315,120]
[423128400,1779870655000,-748.01,0.00039315,120]
[423128401,1779870655000,-748.01,0.00039315,120]
[423128402,1779870655000,-748.01,0.00039315,120]
[423128406,1779870655000,-748.01,0.00039315,120]
[423128404,1779870655000,-748.01,0.00039315,120]
[423128405,1779870655000,-748.01,0.00039315,120]
[423128403,1779870655000,-748.01,0.00039315,120]
[423128410,1779870655000,-575.2059138,0.00039315,120]
[423128411,1779870655000,-500.0,0.00039315,120]
[423128420,1779870655000,-500.0,0.00039315,120]
[423128416,1779870655000,-500.0,0.00039315,120]
[423128419,1779870655000,-500.0,0.00039315,120]
[423128412,1779870655000,-500.0,0.00039315,120]
[423128409,1779870655000,-500.0,0.00039315,120]
[423128414,1779870655000,-500.0,0.00039315,120]
[423128415,1779870655000,-500.0,0.00039315,120]
[423128417,1779870655000,-500.0,0.00039315,120]
[423128418,1779870655000,-500.0,0.00039315,120]
[423128448,1779870655000,-500.0,0.00039315,30]
[423128486,1779870655000,-500.0,0.00039315,120]
[423128454,1779870655000,-500.0,0.00039315,30]
[423128489,1779870655000,-500.0,0.00039315,120]
[423128482,1779870655000,-500.0,0.00039315,120]
[423128488,1779870655000,-500.0,0.00039315,120]
[423128484,1779870655000,-500.0,0.00039315,120]
[423128487,1779870655000,-500.0,0.00039315,120]
[423128510,1779870655000,-500.0,0.00039315,2]
[423128483,1779870655000,-500.0,0.00039315,120]
[423128485,1779870655000,-500.0,0.00039315,120]
[423128493,1779870655000,-500.0,0.00039315,120]
[423128504,1779870655000,-500.0,0.00039315,2]
[423128503,1779870655000,-500.0,0.00039315,2]
[423128496,1779870655000,-620.14407569,0.00039315,120]
[423128494,1779870655000,-500.0,0.00039315,120]
[423128492,1779870655000,-500.0,0.00039315,120]
[423128495,1779870655000,-500.0,0.00039315,120]
[423128502,1779870655000,-500.0,0.00039315,2]
[423128499,1779870655000,-590.477,0.00039315,2]
[423128498,1779870655000,-500.0,0.00039315,2]
[423128500,1779870655000,-500.0,0.00039315,2]
[423128501,1779870655000,-500.0,0.00039315,2]
[423128497,1779870655000,-500.0,0.00039315,2]
[423128509,1779870655000,-500.0,0.00039315,2]
[423128505,1779870655000,-500.0,0.00039315,2]
[423128508,1779870655000,-500.0,0.00039315,2]
[423128507,1779870655000,-500.0,0.00039315,2]
[423128511,1779870655000,-500.0,0.00039315,2]
[423128453,1779870655000,-1000.0,0.00039315,2]
[423128490,1779870655000,-500.0,0.00039315,120]
[423128481,1779870655000,-500.0,0.00039315,120]
[423128506,1779870655000,-500.0,0.00039315,2]
[423128480,1779870655000,-500.0,0.00039315,120]
[423128491,1779870655000,-500.0,0.00039315,120]
[423128452,1779870655000,-500.0,0.00039315,30]
[423128455,1779870655000,-1000.0,0.00039315,2]
[423128458,1779870655000,-500.0,0.00039315,30]
[423128457,1779870655000,-513.88881987,0.00039315,2]
[423128459,1779870655000,-500.0,0.00039315,120]
[423128461,1779870655000,-461.6,0.00039315,30]
[423128465,1779870655000,-500.0,0.00039315,120]
[423128462,1779870655000,-500.0,0.00039315,120]
[423128464,1779870655000,-500.0,0.00039315,120]
[423128463,1779870655000,-500.0,0.00039315,120]
[423128466,1779870655000,-500.0,0.00039315,120]
[423128460,1779870655000,-500.0,0.00039315,120]
[423128446,1779870655000,-500.0,0.00039315,30]
[423128468,1779870655000,-500.0,0.00039315,120]
[423128479,1779870655000,-500.0,0.00039315,120]
[423128456,1779870655000,-500.0,0.00039315,30]
[423128477,1779870655000,-500.0,0.00039315,120]
[423128470,1779870655000,-500.0,0.00039315,120]
[423128475,1779870655000,-500.0,0.00039315,120]
[423128476,1779870655000,-500.0,0.00039315,120]
[423128478,1779870655000,-500.0,0.00039315,120]
[423128474,1779870655000,-500.0,0.00039315,120]
[423128473,1779870655000,-500.0,0.00039315,120]
[423128469,1779870655000,-500.0,0.00039315,120]
[423128467,1779870655000,-500.0,0.00039315,120]
[423128472,1779870655000,-500.0,0.00039315,120]
[423128471,1779870655000,-500.0,0.00039315,120]
[423128543,1779870656000,-215.07805082,0.00039333,120]
[423128553,1779870656000,-295.076573,0.00039334,30]
[423128541,1779870656000,-1610.7,0.00039333,120]
[423128552,1779870656000,-295.076573,0.00039334,30]
[423128545,1779870656000,-1340.8163,0.00039333,112]
[423128548,1779870656000,-150.0,0.00039334,2]
[423128547,1779870656000,-1340.81631,0.00039333,112]
[423128549,1779870656000,-2069.08797061,0.00039334,2]
[423128542,1779870656000,-1610.7,0.00039333,120]
[423128546,1779870656000,-1340.8163,0.00039333,112]
[423128544,1779870656000,-1340.8163,0.00039333,112]
[423128555,1779870656000,-295.076565,0.00039334,30]
[423128551,1779870656000,-1410.63989007,0.00039334,2]
[423128554,1779870656000,-295.076573,0.00039334,30]
[423128557,1779870656000,-823.0694032,0.00039358,2]
[423128559,1779870656000,-196.64301011,0.00039362,2]
[423128558,1779870656000,-623.00638131,0.00039362,2]
[423128560,1779870656000,-2054.67382843,0.00039362,2]
[423128564,1779870656000,-1667.22,0.00039386,120]
[423128565,1779870656000,-1667.22,0.00039386,120]
[423128562,1779870656000,-1667.22,0.00039386,120]
[423128561,1779870656000,-158.7,0.00039385,120]
[423128537,1779870656000,-1667.22,0.00039333,120]
[423128566,1779870656000,-1667.35018401,0.00039386,120]
[423128550,1779870656000,-150.0,0.00039334,2]
[423128532,1779870656000,-380.0,0.00039319,2]
[423128524,1779870656000,-500.0,0.00039315,120]
[423128538,1779870656000,-1667.22,0.00039333,120]
[423128563,1779870656000,-1667.22,0.00039386,120]
[423128515,1779870656000,-500.0,0.00039315,2]
[423128512,1779870656000,-500.0,0.00039315,2]
[423128514,1779870656000,-500.0,0.00039315,2]
[423128516,1779870656000,-500.0,0.00039315,2]
[423128513,1779870656000,-500.0,0.00039315,2]
[423128518,1779870656000,-500.0,0.00039315,120]
[423128517,1779870656000,-180.66609,0.00039315,2]
[423128519,1779870656000,-500.0,0.00039315,120]
[423128525,1779870656000,-500.0,0.00039315,120]
[423128520,1779870656000,-500.0,0.00039315,120]
[423128521,1779870656000,-500.0,0.00039315,120]
[423128527,1779870656000,-500.0,0.00039315,120]
[423128526,1779870656000,-500.0,0.00039315,120]
[423128523,1779870656000,-500.0,0.00039315,120]
[423128522,1779870656000,-500.0,0.00039315,120]
[423128529,1779870656000,-493.47364019,0.00039315,120]
[423128528,1779870656000,-500.0,0.00039315,120]
[423128540,1779870656000,-1610.7,0.00039333,120]
[423128531,1779870656000,-500.0,0.00039315,120]
[423128530,1779870656000,-500.0,0.00039315,120]
[423128539,1779870656000,-1667.22,0.00039333,120]
[423128536,1779870656000,-595.86024803,0.00039333,120]
[423128535,1779870656000,-153.38,0.00039333,120]
[423128533,1779870656000,-824.15255245,0.00039322,2]
[423128534,1779870656000,-159.45,0.00039331,30]
[423128568,1779870656000,-1610.7,0.00039386,120]
[423128556,1779870656000,-159.28,0.00039342,120]
[423128578,1779870656000,-166.0,0.00039388,120]
[423128601,1779870656000,-767.0,0.00039405,30]
[423128603,1779870656000,-767.0,0.00039405,30]
[423128602,1779870656000,-767.0,0.00039405,30]
[423128600,1779870656000,-767.0,0.00039405,30]
[423128599,1779870656000,-767.0,0.00039405,30]
[423128606,1779870656000,-785.0,0.00039405,30]
[423128598,1779870656000,-767.0,0.00039405,30]
[423128604,1779870656000,-767.0,0.00039405,30]
[423128610,1779870656000,-489.394068,0.00039407,33]
[423128611,1779870656000,-245.23,0.0003941,30]
[423128612,1779870656000,-367.85,0.0003941,120]
[423128617,1779870656000,-153.0,0.00039422,120]
[423128609,1779870656000,-183.50611135,0.00039405,7]
[423128614,1779870656000,-169.95,0.0003942,116]
[423128613,1779870656000,-8087.59648954,0.0003942,120]
[423128615,1779870656000,-152.0,0.00039422,120]
[423128616,1779870656000,-152.0,0.00039422,120]
[423128618,1779870656000,-157.0,0.00039422,120]
[423128620,1779870656000,-161.0,0.00039422,120]
[423128621,1779870656000,-159.0,0.00039422,120]
[423128624,1779870656000,-182.36,0.00039434,120]
[423128622,1779870656000,-158.83675798,0.00039431,2]
[423128623,1779870656000,-219.97,0.00039434,120]
[423128619,1779870656000,-152.0,0.00039422,120]
[423128579,1779870656000,-162.0,0.00039388,120]
[423128605,1779870656000,-767.0,0.00039405,30]
[423128596,1779870656000,-761.0,0.00039405,30]
[423128608,1779870656000,-150.0,0.00039405,6]
[423128607,1779870656000,-785.0,0.00039405,30]
[423128580,1779870656000,-165.0,0.00039388,120]
[423128569,1779870656000,-1610.7,0.00039386,120]
[423128597,1779870656000,-761.0,0.00039405,30]
[423128572,1779870656000,-431.0,0.00039386,120]
[423128570,1779870656000,-1610.7,0.00039386,120]
[423128576,1779870656000,-407.77970334,0.00039387,10]
[423128571,1779870656000,-1610.79140384,0.00039386,120]
[423128573,1779870656000,-300.0,0.00039387,10]
[423128567,1779870656000,-1610.7,0.00039386,120]
[423128574,1779870656000,-300.0,0.00039387,10]
[423128577,1779870656000,-154.0,0.00039388,120]
[423128581,1779870656000,-152.0,0.00039388,120]
[423128583,1779870656000,-444.45924206,0.00039388,2]
[423128575,1779870656000,-300.0,0.00039387,10]
[423128585,1779870656000,-159.32314462,0.00039392,120]
[423128593,1779870656000,-1301.0,0.00039405,30]
[423128582,1779870656000,-444.45924206,0.00039388,2]
[423128595,1779870656000,-760.0,0.00039405,30]
[423128592,1779870656000,-295.77860283,0.00039405,30]
[423128587,1779870656000,-300.0,0.00039399,10]
[423128594,1779870656000,-760.0,0.00039405,30]
[423128590,1779870656000,-230990.24890072,0.000394,20]
[423128588,1779870656000,-300.0,0.00039399,10]
[423128589,1779870656000,-154.37829777,0.000394,120]
[423128586,1779870656000,-300.0,0.00039399,10]
[423128584,1779870656000,-444.45924206,0.00039388,2]
[423128591,1779870656000,-1264.5323372,0.000394,120]
[423128644,1779870657000,-500.0,0.00039315,120]
[423128638,1779870657000,-523.0,0.00036066,13]
[423128643,1779870657000,-151.0,0.00037356,7]
[423128654,1779870657000,-18605.5,0.00039462,30]
[423128642,1779870657000,-151.0,0.00036622,7]
[423128636,1779870657000,-300.0,0.0003552,2]
[423128637,1779870657000,-300.0,0.0003552,2]
[423128641,1779870657000,-151.0,0.000365,7]
[423128640,1779870657000,-151.0,0.00036447,7]
[423128639,1779870657000,-151.0,0.00036446,7]
[423128626,1779870657000,-50000.0,0.00039461,53]
[423128633,1779870657000,-50000.0,0.00039461,59]
[423128634,1779870657000,-2039008.24031663,0.00039462,30]
[423128632,1779870657000,-50000.0,0.00039461,58]
[423128625,1779870657000,-158.7,0.00039435,120]
[423128627,1779870657000,-50000.0,0.00039461,54]
[423128631,1779870657000,-315.48331409,0.00039461,120]
[423128629,1779870657000,-50000.0,0.00039461,56]
[423128630,1779870657000,-50000.0,0.00039461,57]
[423128628,1779870657000,-50000.0,0.00039461,55]
[423128645,1779870657000,-500.0,0.00039315,120]
[423128635,1779870657000,-523.0,0.00025082,2]
[423128646,1779870657000,-500.0,0.00039315,120]
[423128659,1779870657000,-213779.2898831,0.00039462,30]
[423128647,1779870657000,-500.0,0.00039315,120]
[423128671,1779870657000,-151.0,0.00038356,30]
[423128672,1779870657000,-1250.63606088,0.00039229,2]
[423128669,1779870657000,-151.0,0.00037356,7]
[423128670,1779870657000,-151.0,0.00038356,30]
[423128668,1779870657000,-151.0,0.00036622,7]
[423128666,1779870657000,-204.808712,0.00036446,7]
[423128667,1779870657000,-151.0,0.000365,7]
[423128663,1779870657000,-219.5615749,0.0003552,2]
[423128664,1779870657000,-208.74486293,0.00036229,2]
[423128662,1779870657000,-80.4384251,0.0003552,2]
[423128665,1779870657000,-1147.25513707,0.00036229,2]
[423128660,1779870657000,-662.0269334,0.00039462,30]
[423128649,1779870657000,-500.0,0.00039315,120]
[423128661,1779870657000,-300.0,0.0003552,2]
[423128648,1779870657000,-500.0,0.00039315,120]
[423128652,1779870657000,-151.0,0.00036446,7]
[423128651,1779870657000,-31538.36831701,0.00039462,30]
[423128653,1779870657000,-12845.58543143,0.00039462,30]
[423128656,1779870657000,-519.47,0.00039462,30]
[423128657,1779870657000,-304.0,0.00039462,30]
[423128658,1779870657000,-151.0,0.00036447,7]
[423128655,1779870657000,-3000.0,0.00039462,30]
[423128650,1779870657000,-533.63168299,0.00039315,120]
[423128728,1779871124000,-250.0,0.00014,2]
[423128734,1779871177000,-285.0,0.00014798,2]
[423128739,1779871230000,-177.88848839,0.00014826,2]
[423128743,1779871284000,-300.0,0.00014898,2]
[423128744,1779871288000,12234.336224,0.00028,120]
[423128745,1779871305000,-300.0,0.00014898,2]
[423128749,1779871358000,-320.3653,0.00014898,2]
[423128750,1779871359000,20000.0,0.00028,120]
[423128753,1779871378000,-300.0,0.00014898,2]
[423128754,1779871398000,-579.6347,0.00014898,2]
[423128755,1779871411000,408.5,0.00026873,120]
[423128758,1779871452000,-500.0,0.00014989,2]
[423128763,1779871505000,-300.0,0.00014998,2]
[423128764,1779871553000,-500.0,0.00014999,2]
[423128765,1779871553000,-65.47321967,0.00014999,2]
[423128770,1779871611000,-360.70760933,0.00014999,2]
[423128767,1779871611000,-434.52678033,0.00014999,2]
[423128769,1779871611000,-500.0,0.00014999,2]
[423128768,1779871611000,-500.0,0.00014999,2]
[423128773,1779871629000,-107.46794162,0.00014999,2]
[423128772,1779871629000,-500.0,0.00014999,2]
[423128771,1779871629000,-139.29239067,0.00014999,2]
[423128774,1779871634000,-435.54202836,0.00014999,2]
[423128775,1779871634000,-576.76,0.00014999,2]
[423128776,1779871634000,-272.85371328,0.00014999,2]
[423128797,1779871763000,-182.3443566,0.00012883,2]
[423128798,1779871764000,-823.318874,0.00012883,2]
[423128802,1779871768000,-58.8630016,0.00012883,2]
[423128801,1779871768000,-151.0,0.000127,2]
[423128804,1779871771000,-660.4537678,0.00012883,2]
[423128803,1779871771000,-151.0,0.000127,2]
[423128806,1779871771000,-1724.98,0.00013561,2]
[423128807,1779871771000,-250.0,0.00014171,2]
[423128809,1779871771000,-1724.98,0.00014917,2]
[423128805,1779871771000,-250.0,0.00013222,2]
[423128808,1779871771000,-1724.98,0.00014239,2]
[423128812,1779871771000,-500.0,0.00014999,2]
[423128815,1779871771000,-1724.98,0.00016273,2]
[423128810,1779871771000,-200.0,0.00014989,2]
[423128813,1779871771000,-1724.98,0.00015595,2]
[423128814,1779871771000,-300.0,0.00016272,2]
[423128817,1779871771000,-251.13945625,0.00017221,2]
[423128816,1779871771000,-1724.98,0.00016951,2]
[423128818,1779871771000,-300.0,0.00017281,2]
[423128819,1779871771000,-28740.31283595,0.00017282,2]
[423128811,1779871771000,-200.0,0.00014989,7]
[423128820,1779871773000,-3362.11904672,0.00017282,2]
[423128821,1779871773000,-1724.98,0.00017629,2]
[423128822,1779871773000,-420.0,0.00017786,2]
[423128824,1779871773000,-183.0,0.00018869,2]
[423128825,1779871773000,-914.37584908,0.00018985,2]
[423128823,1779871773000,-1724.98,0.00018307,2]
[423128883,1779871832000,-311.98153759,0.00020342,2]
[423128895,1779871832000,-1910.08,0.00021881,2]
[423128891,1779871832000,-136.79621403,0.00021347,2]
[423128889,1779871832000,-1200.0,0.00021346,2]
[423128890,1779871832000,-300.0,0.00021346,2]
[423128886,1779871832000,-1382.16245151,0.0002102,2]
[423128887,1779871832000,-342.81754849,0.0002102,2]
[423128885,1779871832000,-127.26387428,0.00021,2]
[423128884,1779871832000,-25.73612572,0.00021,2]
[423128875,1779871832000,-68.02662975,0.000131,2]
[423128881,1779871832000,-599.30213,0.00020342,2]
[423128880,1779871832000,-139.78921933,0.00020342,2]
[423128879,1779871832000,-153.0,0.0002,2]
[423128878,1779871832000,-1724.98,0.00019664,2]
[423128876,1779871832000,-300.0,0.0001441,2]
[423128894,1779871832000,-1724.98,0.00021698,2]
[423128877,1779871832000,-810.60415092,0.00018985,2]
[423128874,1779871832000,-82.97337025,0.000131,2]
[423128882,1779871832000,-673.90711308,0.00020342,2]
[423128898,1779871832000,-166.66,0.00022219,30]
[423128888,1779871832000,-371.34,0.00021273,2]
[423128896,1779871832000,-153.0,0.00022,2]
[423128892,1779871832000,-1773.28378597,0.00021347,2]
[423128912,1779871832000,-1680.0,0.00023321,2]
[423128911,1779871832000,-3489.95,0.00023302,2]
[423128915,1779871832000,-313.34184775,0.00023482,2]
[423128913,1779871832000,-2000.0,0.00023456,2]
[423128909,1779871832000,-5000.0,0.00023266,2]
[423128908,1779871832000,-420.0,0.00023211,2]
[423128914,1779871832000,-1471.94806282,0.00023482,2]
[423128905,1779871832000,-169.2,0.00023,2]
[423128907,1779871832000,-166.66,0.00023155,30]
[423128910,1779871832000,-13478.34,0.00023284,2]
[423128904,1779871832000,-1910.08,0.00022948,2]
[423128902,1779871832000,-150.0,0.00022456,2]
[423128903,1779871832000,-166.66,0.00022687,30]
[423128900,1779871832000,-1910.08,0.00022414,2]
[423128901,1779871832000,-12332.41680366,0.00022448,2]
[423128899,1779871832000,-1724.98,0.00022376,2]
[423128897,1779871832000,-1386.65,0.00022169,2]
[423128906,1779871832000,-1724.98,0.00023054,2]
[423128893,1779871832000,-1852.42,0.00021347,2]
[423128972,1779871839000,-500.0,0.00026846,2]
[423128979,1779871839000,-511.21191212,0.0002689,2]
[423128971,1779871839000,-400.63341878,0.000268,2]
[423128970,1779871839000,-384.18534949,0.000268,2]
[423128973,1779871839000,-511.21191212,0.0002689,2]
[423128969,1779871839000,-305.93697692,0.000268,2]
[423128978,1779871839000,-511.21191212,0.0002689,2]
[423128977,1779871839000,-501.01968115,0.0002689,2]
[423128967,1779871839000,-384.18534949,0.000266,2]
[423128975,1779871839000,-500.0,0.0002689,2]
[423128964,1779871839000,-2000.0,0.00026388,2]
[423128968,1779871839000,-400.63341878,0.000266,2]
[423128974,1779871839000,-511.21191212,0.0002689,2]
[423128985,1779871839000,-511.21191212,0.0002689,2]
[423128980,1779871839000,-511.21191212,0.0002689,2]
[423128982,1779871839000,-511.21191212,0.0002689,2]
[423128992,1779871839000,-511.21191212,0.0002689,2]
[423128981,1779871839000,-511.21191212,0.0002689,2]
[423128983,1779871839000,-511.21191212,0.0002689,2]
[423128993,1779871839000,-511.21191212,0.0002689,2]
[423128984,1779871839000,-511.21191212,0.0002689,2]
[423128989,1779871839000,-511.21191212,0.0002689,2]
[423128987,1779871839000,-511.21191212,0.0002689,2]
[423128986,1779871839000,-511.21191212,0.0002689,2]
[423128988,1779871839000,-511.21191212,0.0002689,2]
[423128990,1779871839000,-511.21191212,0.0002689,2]
[423128966,1779871839000,-305.93697692,0.000266,2]
[423128976,1779871839000,-511.21191212,0.0002689,2]
[423128958,1779871839000,-12397.5,0.00025786,2]
[423128936,1779871839000,-16581.62812577,0.00023521,2]
[423128956,1779871839000,-1724.98,0.00025766,2]
[423128935,1779871839000,-838.0,0.0002352,2]
[423128934,1779871839000,-124.79008943,0.00023482,2]
[423128991,1779871839000,-511.21191212,0.0002689,2]
[423128939,1779871839000,-200.0,0.00023531,2]
[423128938,1779871839000,-2685.81187424,0.00023521,2]
[423128937,1779871839000,-2009.99999999,0.00023521,2]
[423128940,1779871839000,-690.04,0.00023537,2]
[423128942,1779871839000,-1724.98,0.00023732,2]
[423128941,1779871839000,-166.66,0.00023623,30]
[423128944,1779871839000,-166.66,0.0002409,30]
[423128945,1779871839000,-12397.5,0.00024174,2]
[423128943,1779871839000,-408.5,0.00023887,2]
[423128952,1779871839000,-1724.98,0.00025088,2]
[423128960,1779871839000,-4340.87,0.00026176,2]
[423128946,1779871839000,-1724.98,0.0002441,2]
[423128951,1779871839000,-527.0,0.00025082,2]
[423128947,1779871839000,-166.66,0.00024558,30]
[423128949,1779871839000,-3761.92,0.00024842,2]
[423128950,1779871839000,-2288.04,0.00024999,2]
[423128953,1779871839000,-151.63,0.00025116,2]
[423128955,1779871839000,-2351.0,0.00025479,2]
[423128965,1779871839000,-151.63,0.00026511,2]
[423128954,1779871839000,-262.0,0.0002524,2]
[423128957,1779871839000,-371.34,0.00025786,2]
[423128962,1779871839000,-384.18534949,0.000263,2]
[423128959,1779871839000,-150.0,0.00026095,2]
[423128963,1779871839000,-400.63341878,0.000263,2]
[423128961,1779871839000,-305.93697692,0.000263,2]
[423128948,1779871839000,-500.0,0.00024587,2]
[423128994,1779871839000,-511.21191212,0.0002689,2]
[423128996,1779871839000,-511.21191212,0.0002689,2]
[423128997,1779871839000,-511.21191212,0.0002689,2]
[423129030,1779871839000,-10107.74,0.00027397,10]
[423129028,1779871839000,-166.72,0.00027214,2]
[423129027,1779871839000,-24017.08999662,0.00027194,2]
[423129031,1779871839000,-305.93697692,0.000274,2]
[423129033,1779871839000,-400.63341878,0.000274,2]
[423129036,1779871839000,-151.63,0.00027907,2]
[423129035,1779871839000,-418.2512123,0.00027869,2]
[423129040,1779871839000,-24017.08999655,0.00028542,2]
[423129045,1779871839000,-181.0,0.00029,7]
[423129037,1779871839000,-181.0,0.000281,7]
[423129041,1779871839000,-276.0,0.00028575,2]
[423129034,1779871839000,-3292.0,0.00027837,2]
[423129042,1779871839000,-541.36,0.00028632,30]
[423129029,1779871839000,-12129.29,0.00027397,10]
[423129044,1779871839000,-181.0,0.00029,7]